{"text_format":"1","workbook":"xlsx","n_sheets":5,"sheets":["RouteOptimization","PrintingSheet","HowToUse","Password","CSV"],"not_rendered":{"charts":2,"images":0,"macros":1,"external_links":1,"defined_names":18,"comments":0,"pivot_tables":0},"unopened":[],"bounds":{"document_bytes":16777216,"sheet_cells":100000,"rows_first":2000,"rows_last":500,"rows_between":2000,"halvings":0,"cell_chars":16384,"cell_head_chars":4096},"cells_cut":0,"cells_raw":0,"read":"whole","date_system":"1900"}

{"sheet":"RouteOptimization","index":0,"n_rows":45,"n_cols":46,"rows_kept":45,"cut":false,"hidden":false,"merged":[[0,1,0,2],[4,10,4,12],[5,4,5,5],[6,4,6,5]]}
[null,"Delivery Route Optimization program",null,null,null,null,"Input","Output"]
[null,"Country code","us"]
[null,"How to get around the route","auto"]
[null,"Departure time","09:30:00"]
[null,"Departure location (delivery center address)","3860 23rd St, San Francisco",null,null,null,null,null,"Departure location",null,"Optimized result"]
[null,"Downtime at one delivery point  (hours:minutes)","00:05:00",null,"Today's navigation search count\n(Resets when used)",null,32,null,"Latitude","Longitude","total time","travel time","travel distance"]
[null,null,"Navigation search completed. Time required and total distance output.",null,"Final Use date",null,"2025-04-06T16:47:36",null,37.753315233333332,-122.42902804444444]
["Input Data: Order doesn't matter. The last line is blank.",null,null,null,"Result data: This is the data after the delivery order has been determined. You can also manuallly change the delivery order by copying the line "]
["ID","Shipping name","Shipping address",null,"Delivery Order","ID","Shipping name","Shipping address","Latitude","Longitude","Arrival time","Duration(min)","Distance(km)",null,null,null,null,null,null,"Shipping No","Shipping name","Shipping address","Latitude","Longitude","x","y","Order factor F"]
[1001,"Marcello's Pizza","420 Castro St, San Francisco",null,1]
[1002,"san francisco friends of city planning","329 Collingwood St, San Francisco",null,2]
[1003,"Valentino Tours","812 Guerrero St, San Francisco",null,3]
[1004,"Sushi Time","2275 Market St, San Francisco",null,4]
[1005,"Thomas Edison Charter Academy","3531 22nd St, San Francisco",null,5]
[1006,"Creativity Explored","3245 16th St, San Francisco",null,6]
[1007,"Plaza Del Sol Apartments","440 Valencia St, San Francisco",null,7]
[1008,"Warakubune","307 Church St, San Francisco",null,8]
[1009,"Second church of Christ, scientist","93 Cumberland St, San Francisco",null,9]
[1010,"Bi-Rite Creamery","3692 18th St, San Francisco",null,10]
[1011,"Maisonry Salon","3412 22nd St, San Francisco",null,11]
[1012,"Noe Indian Cuisine","4166 24th St, San Francisco",null,12]
[1013,"Joe Loux","594 Clipper St, San Francisco",null,13]
[1014,"Electrical Land","108 Turquoise Way, San Francisco",null,14]
[1015,"5cube Labs","2311 Diamond St, San Francisco",null,15]
[1016,"Iris Willow Jewelry Studio","266 Bemis St, San Francisco",null,16]
[1017,null,null,null,17]
[1018,null,null,null,18]
[1019,null,null,null,19]
[1020,null,null,null,20,null,null,null,null,null,null,null,null,null,null,null,null,null,null,null,null,null,null,null,null,null,null,null,null,null,null,null,null,{"$f":"((AH12-AH11)^2+(AI12-AI11)^2)^0.5","v":0},null,null,null,{"$f":"((AL12-AL11)^2+(AM12-AM11)^2)^0.5","v":0},null,null,null,{"$f":"((AP12-AP11)^2+(AQ12-AQ11)^2)^0.5","v":0},null,null,null,{"$f":"((AT12-AT11)^2+(AU12-AU11)^2)^0.5","v":0}]
[null,null,null,null,null,null,null,null,null,null,null,null,null,null,null,null,null,null,null,null,null,null,null,null,null,null,null,null,null,{"$f":"((AH13-AH12)^2+(AI13-AI12)^2)^0.5","v":0},null,null,null,{"$f":"((AL13-AL12)^2+(AM13-AM12)^2)^0.5","v":0},null,null,null,{"$f":"((AP13-AP12)^2+(AQ13-AQ12)^2)^0.5","v":0},null,null,null,{"$f":"((AT13-AT12)^2+(AU13-AU12)^2)^0.5","v":0}]
[null,null,null,null,null,null,null,null,null,null,null,null,null,null,null,null,null,null,null,null,null,null,null,null,null,null,null,null,null,{"$f":"((AH14-AH13)^2+(AI14-AI13)^2)^0.5","v":0},null,null,null,{"$f":"((AL14-AL13)^2+(AM14-AM13)^2)^0.5","v":0},null,null,null,{"$f":"((AP14-AP13)^2+(AQ14-AQ13)^2)^0.5","v":0},null,null,null,{"$f":"((AT14-AT13)^2+(AU14-AU13)^2)^0.5","v":0}]
[null,null,null,null,null,null,null,null,null,null,null,null,null,null,null,null,null,null,null,null,null,null,null,null,null,null,null,null,null,{"$f":"((AH15-AH14)^2+(AI15-AI14)^2)^0.5","v":0},null,null,null,{"$f":"((AL15-AL14)^2+(AM15-AM14)^2)^0.5","v":0},null,null,null,{"$f":"((AP15-AP14)^2+(AQ15-AQ14)^2)^0.5","v":0},null,null,null,{"$f":"((AT15-AT14)^2+(AU15-AU14)^2)^0.5","v":0}]
[null,null,null,null,null,null,null,null,null,null,null,null,null,null,null,null,null,null,null,null,null,null,null,null,null,null,null,null,null,{"$f":"((AH16-AH15)^2+(AI16-AI15)^2)^0.5","v":0},null,null,null,{"$f":"((AL16-AL15)^2+(AM16-AM15)^2)^0.5","v":0},null,null,null,{"$f":"((AP16-AP15)^2+(AQ16-AQ15)^2)^0.5","v":0},null,null,null,{"$f":"((AT16-AT15)^2+(AU16-AU15)^2)^0.5","v":0}]
[null,null,null,null,null,null,null,null,null,null,null,null,null,null,null,null,null,null,null,null,null,null,null,null,null,null,null,null,null,null,null,null,null,0,null,null,null,0,null,null,null,0,null,null,null,0]
[null,null,null,null,null,null,null,null,null,null,null,null,null,null,null,null,null,null,null,null,null,null,null,null,null,null,null,null,null,null,null,null,null,0,null,null,null,0,null,null,null,0,null,null,null,0]
[null,null,null,null,null,null,null,null,null,null,null,null,null,null,null,null,null,null,null,null,null,null,null,null,null,null,null,null,null,null,null,null,null,0,null,null,null,0,null,null,null,0,null,null,null,0]
[null,null,null,null,null,null,null,null,null,null,null,null,null,null,null,null,null,null,null,null,null,null,null,null,null,null,null,null,null,null,null,null,null,0,null,null,null,0,null,null,null,0,null,null,null,0]
[null,null,null,null,null,null,null,null,null,null,null,null,null,null,null,null,null,null,null,null,null,null,null,null,null,null,null,null,null,null,null,null,null,0,null,null,null,0,null,null,null,0,null,null,null,0]
[null,null,null,null,null,null,null,null,null,null,null,null,null,null,null,null,null,null,null,null,null,null,null,null,null,null,null,null,null,null,null,null,null,0,null,null,null,0,null,null,null,0,null,null,null,0]
[null,null,null,null,null,null,null,null,null,null,null,null,null,null,null,null,null,null,null,null,null,null,null,null,null,null,null,null,null,null,null,null,null,0,null,null,null,0,null,null,null,0,null,null,null,0]
[null,null,null,null,null,null,null,null,null,null,null,null,null,null,null,null,null,null,null,null,null,null,null,null,null,null,null,null,null,null,null,null,null,{"$f":"((AH24-AH23)^2+(AI24-AI23)^2)^0.5","v":0},null,null,null,{"$f":"((AL24-AL23)^2+(AM24-AM23)^2)^0.5","v":0},null,null,null,{"$f":"((AP24-AP23)^2+(AQ24-AQ23)^2)^0.5","v":0},null,null,null,{"$f":"((AT24-AT23)^2+(AU24-AU23)^2)^0.5","v":0}]
[null,null,null,null,null,null,null,null,null,null,null,null,null,null,null,null,null,null,null,null,null,null,null,null,null,null,null,null,null,null,null,null,null,0,null,null,null,0,null,null,null,0,null,null,null,0]
[null,null,null,null,null,null,null,null,null,null,null,null,null,null,null,null,null,null,null,null,null,null,null,null,null,null,null,null,null,null,null,null,null,{"$f":"((AH26-AH25)^2+(AI26-AI25)^2)^0.5","v":0},null,null,null,{"$f":"((AL26-AL25)^2+(AM26-AM25)^2)^0.5","v":0},null,null,null,{"$f":"((AP26-AP25)^2+(AQ26-AQ25)^2)^0.5","v":0},null,null,null,{"$f":"((AT26-AT25)^2+(AU26-AU25)^2)^0.5","v":0}]
[]
[null,null,null,null,null,null,null,null,null,null,null,null,null,null,null,null,null,null,null,null,null,null,null,null,null,null,null,null,null,null,null,null,null,{"$f":"SUM(AH28:AH43)","v":0},null,null,null,{"$f":"SUM(AL28:AL43)","v":0},null,null,null,{"$f":"SUM(AP28:AP43)","v":0},null,null,null,{"$f":"SUM(AT28:AT43)","v":0}]

{"sheet":"PrintingSheet","index":1,"n_rows":29,"n_cols":12,"rows_kept":29,"cut":false,"hidden":false,"merged":[[3,11,11,13]]}
["Printing Sheet",null,null,null,null,null,null,"total time","travel time","travel distance"]
[null,null,null,"Toda's delivery ",{"$f":"TODAY()","v":"2025-04-19"},null,null,{"$f":"RouteOptimization!K7","v":"00:00:00"},{"$f":"RouteOptimization!L7","v":"00:00:00"},{"$f":"RouteOptimization!M7","v":0}]
[]
[null,{"$f":"RouteOptimization!E9","v":"Delivery Order"},{"$f":"RouteOptimization!F9","v":"ID"},{"$f":"RouteOptimization!G9","v":"Shipping name"},{"$f":"RouteOptimization!H9","v":"Shipping address"},{"$f":"RouteOptimization!I9","v":"Latitude"},{"$f":"RouteOptimization!J9","v":"Longitude"},{"$f":"RouteOptimization!K9","v":"Arrival time"},{"$f":"RouteOptimization!L9","v":"Duration(min)"},{"$f":"RouteOptimization!M9","v":"Distance(km)"},null,"This sheet (printing sheet) simply copies the results of the \"Route Optimization.\"\n\nPlease use it for printing.\n\nYou can print it by going to File → Print."]
[null,{"$f":"RouteOptimization!E10","v":1},{"$f":"RouteOptimization!F10","v":0},{"$f":"RouteOptimization!G10","v":0},{"$f":"RouteOptimization!H10","v":0},{"$f":"RouteOptimization!I10","v":0},{"$f":"RouteOptimization!J10","v":0},{"$f":"RouteOptimization!K10","v":"00:00:00"},{"$f":"RouteOptimization!L10","v":0},{"$f":"RouteOptimization!M10","v":0}]
[null,{"$f":"RouteOptimization!E11","v":2},{"$f":"RouteOptimization!F11","v":0},{"$f":"RouteOptimization!G11","v":0},{"$f":"RouteOptimization!H11","v":0},{"$f":"RouteOptimization!I11","v":0},{"$f":"RouteOptimization!J11","v":0},{"$f":"RouteOptimization!K11","v":"00:00:00"},{"$f":"RouteOptimization!L11","v":0},{"$f":"RouteOptimization!M11","v":0}]
[null,{"$f":"RouteOptimization!E12","v":3},{"$f":"RouteOptimization!F12","v":0},{"$f":"RouteOptimization!G12","v":0},{"$f":"RouteOptimization!H12","v":0},{"$f":"RouteOptimization!I12","v":0},{"$f":"RouteOptimization!J12","v":0},{"$f":"RouteOptimization!K12","v":"00:00:00"},{"$f":"RouteOptimization!L12","v":0},{"$f":"RouteOptimization!M12","v":0}]
[null,{"$f":"RouteOptimization!E13","v":4},{"$f":"RouteOptimization!F13","v":0},{"$f":"RouteOptimization!G13","v":0},{"$f":"RouteOptimization!H13","v":0},{"$f":"RouteOptimization!I13","v":0},{"$f":"RouteOptimization!J13","v":0},{"$f":"RouteOptimization!K13","v":"00:00:00"},{"$f":"RouteOptimization!L13","v":0},{"$f":"RouteOptimization!M13","v":0}]
[null,{"$f":"RouteOptimization!E14","v":5},{"$f":"RouteOptimization!F14","v":0},{"$f":"RouteOptimization!G14","v":0},{"$f":"RouteOptimization!H14","v":0},{"$f":"RouteOptimization!I14","v":0},{"$f":"RouteOptimization!J14","v":0},{"$f":"RouteOptimization!K14","v":"00:00:00"},{"$f":"RouteOptimization!L14","v":0},{"$f":"RouteOptimization!M14","v":0}]
[null,{"$f":"RouteOptimization!E15","v":6},{"$f":"RouteOptimization!F15","v":0},{"$f":"RouteOptimization!G15","v":0},{"$f":"RouteOptimization!H15","v":0},{"$f":"RouteOptimization!I15","v":0},{"$f":"RouteOptimization!J15","v":0},{"$f":"RouteOptimization!K15","v":"00:00:00"},{"$f":"RouteOptimization!L15","v":0},{"$f":"RouteOptimization!M15","v":0}]
[null,{"$f":"RouteOptimization!E16","v":7},{"$f":"RouteOptimization!F16","v":0},{"$f":"RouteOptimization!G16","v":0},{"$f":"RouteOptimization!H16","v":0},{"$f":"RouteOptimization!I16","v":0},{"$f":"RouteOptimization!J16","v":0},{"$f":"RouteOptimization!K16","v":"00:00:00"},{"$f":"RouteOptimization!L16","v":0},{"$f":"RouteOptimization!M16","v":0}]
[null,{"$f":"RouteOptimization!E17","v":8},{"$f":"RouteOptimization!F17","v":0},{"$f":"RouteOptimization!G17","v":0},{"$f":"RouteOptimization!H17","v":0},{"$f":"RouteOptimization!I17","v":0},{"$f":"RouteOptimization!J17","v":0},{"$f":"RouteOptimization!K17","v":"00:00:00"},{"$f":"RouteOptimization!L17","v":0},{"$f":"RouteOptimization!M17","v":0}]
[null,{"$f":"RouteOptimization!E18","v":9},{"$f":"RouteOptimization!F18","v":0},{"$f":"RouteOptimization!G18","v":0},{"$f":"RouteOptimization!H18","v":0},{"$f":"RouteOptimization!I18","v":0},{"$f":"RouteOptimization!J18","v":0},{"$f":"RouteOptimization!K18","v":"00:00:00"},{"$f":"RouteOptimization!L18","v":0},{"$f":"RouteOptimization!M18","v":0}]
[null,{"$f":"RouteOptimization!E19","v":10},{"$f":"RouteOptimization!F19","v":0},{"$f":"RouteOptimization!G19","v":0},{"$f":"RouteOptimization!H19","v":0},{"$f":"RouteOptimization!I19","v":0},{"$f":"RouteOptimization!J19","v":0},{"$f":"RouteOptimization!K19","v":"00:00:00"},{"$f":"RouteOptimization!L19","v":0},{"$f":"RouteOptimization!M19","v":0}]
[null,{"$f":"RouteOptimization!E20","v":11},{"$f":"RouteOptimization!F20","v":0},{"$f":"RouteOptimization!G20","v":0},{"$f":"RouteOptimization!H20","v":0},{"$f":"RouteOptimization!I20","v":0},{"$f":"RouteOptimization!J20","v":0},{"$f":"RouteOptimization!K20","v":"00:00:00"},{"$f":"RouteOptimization!L20","v":0},{"$f":"RouteOptimization!M20","v":0}]
[null,{"$f":"RouteOptimization!E21","v":12},{"$f":"RouteOptimization!F21","v":0},{"$f":"RouteOptimization!G21","v":0},{"$f":"RouteOptimization!H21","v":0},{"$f":"RouteOptimization!I21","v":0},{"$f":"RouteOptimization!J21","v":0},{"$f":"RouteOptimization!K21","v":"00:00:00"},{"$f":"RouteOptimization!L21","v":0},{"$f":"RouteOptimization!M21","v":0}]
[null,{"$f":"RouteOptimization!E22","v":13},{"$f":"RouteOptimization!F22","v":0},{"$f":"RouteOptimization!G22","v":0},{"$f":"RouteOptimization!H22","v":0},{"$f":"RouteOptimization!I22","v":0},{"$f":"RouteOptimization!J22","v":0},{"$f":"RouteOptimization!K22","v":"00:00:00"},{"$f":"RouteOptimization!L22","v":0},{"$f":"RouteOptimization!M22","v":0}]
[null,{"$f":"RouteOptimization!E23","v":14},{"$f":"RouteOptimization!F23","v":0},{"$f":"RouteOptimization!G23","v":0},{"$f":"RouteOptimization!H23","v":0},{"$f":"RouteOptimization!I23","v":0},{"$f":"RouteOptimization!J23","v":0},{"$f":"RouteOptimization!K23","v":"00:00:00"},{"$f":"RouteOptimization!L23","v":0},{"$f":"RouteOptimization!M23","v":0}]
[null,{"$f":"RouteOptimization!E24","v":15},{"$f":"RouteOptimization!F24","v":0},{"$f":"RouteOptimization!G24","v":0},{"$f":"RouteOptimization!H24","v":0},{"$f":"RouteOptimization!I24","v":0},{"$f":"RouteOptimization!J24","v":0},{"$f":"RouteOptimization!K24","v":"00:00:00"},{"$f":"RouteOptimization!L24","v":0},{"$f":"RouteOptimization!M24","v":0}]
[null,{"$f":"RouteOptimization!E25","v":16},{"$f":"RouteOptimization!F25","v":0},{"$f":"RouteOptimization!G25","v":0},{"$f":"RouteOptimization!H25","v":0},{"$f":"RouteOptimization!I25","v":0},{"$f":"RouteOptimization!J25","v":0},{"$f":"RouteOptimization!K25","v":"00:00:00"},{"$f":"RouteOptimization!L25","v":0},{"$f":"RouteOptimization!M25","v":0}]
[null,{"$f":"RouteOptimization!E26","v":17},{"$f":"RouteOptimization!F26","v":0},{"$f":"RouteOptimization!G26","v":0},{"$f":"RouteOptimization!H26","v":0},{"$f":"RouteOptimization!I26","v":0},{"$f":"RouteOptimization!J26","v":0},{"$f":"RouteOptimization!K26","v":"00:00:00"},{"$f":"RouteOptimization!L26","v":0},{"$f":"RouteOptimization!M26","v":0}]
[null,{"$f":"RouteOptimization!E27","v":18},{"$f":"RouteOptimization!F27","v":0},{"$f":"RouteOptimization!G27","v":0},{"$f":"RouteOptimization!H27","v":0},{"$f":"RouteOptimization!I27","v":0},{"$f":"RouteOptimization!J27","v":0},{"$f":"RouteOptimization!K27","v":"00:00:00"},{"$f":"RouteOptimization!L27","v":0},{"$f":"RouteOptimization!M27","v":0}]
[null,{"$f":"RouteOptimization!E28","v":19},{"$f":"RouteOptimization!F28","v":0},{"$f":"RouteOptimization!G28","v":0},{"$f":"RouteOptimization!H28","v":0},{"$f":"RouteOptimization!I28","v":0},{"$f":"RouteOptimization!J28","v":0},{"$f":"RouteOptimization!K28","v":"00:00:00"},{"$f":"RouteOptimization!L28","v":0},{"$f":"RouteOptimization!M28","v":0}]
[null,{"$f":"RouteOptimization!E29","v":20},{"$f":"RouteOptimization!F29","v":0},{"$f":"RouteOptimization!G29","v":0},{"$f":"RouteOptimization!H29","v":0},{"$f":"RouteOptimization!I29","v":0},{"$f":"RouteOptimization!J29","v":0},{"$f":"RouteOptimization!K29","v":"00:00:00"},{"$f":"RouteOptimization!L29","v":0},{"$f":"RouteOptimization!M29","v":0}]
[null,{"$f":"RouteOptimization!E30","v":0},{"$f":"RouteOptimization!F30","v":0},{"$f":"RouteOptimization!G30","v":0},{"$f":"RouteOptimization!H30","v":0},{"$f":"RouteOptimization!#REF!","v":{"$error":"#REF!"}},{"$f":"RouteOptimization!#REF!","v":{"$error":"#REF!"}},{"$f":"RouteOptimization!#REF!","v":{"$error":"#REF!"}},{"$f":"RouteOptimization!#REF!","v":{"$error":"#REF!"}},{"$f":"RouteOptimization!I30","v":0}]
[null,{"$f":"RouteOptimization!E31","v":0},{"$f":"RouteOptimization!F31","v":0},{"$f":"RouteOptimization!G31","v":0},{"$f":"RouteOptimization!H31","v":0},{"$f":"RouteOptimization!#REF!","v":{"$error":"#REF!"}},{"$f":"RouteOptimization!#REF!","v":{"$error":"#REF!"}},{"$f":"RouteOptimization!#REF!","v":{"$error":"#REF!"}},{"$f":"RouteOptimization!#REF!","v":{"$error":"#REF!"}},{"$f":"RouteOptimization!I31","v":0}]
[null,{"$f":"RouteOptimization!E36","v":0},{"$f":"RouteOptimization!F36","v":0},{"$f":"RouteOptimization!G36","v":0},{"$f":"RouteOptimization!H36","v":0},{"$f":"RouteOptimization!I36","v":0},{"$f":"RouteOptimization!J36","v":0},{"$f":"RouteOptimization!K36","v":"00:00:00"},{"$f":"RouteOptimization!L36","v":0},{"$f":"RouteOptimization!M36","v":0}]
[null,{"$f":"RouteOptimization!E37","v":0},{"$f":"RouteOptimization!F37","v":0},{"$f":"RouteOptimization!G37","v":0},{"$f":"RouteOptimization!H37","v":0},{"$f":"RouteOptimization!I37","v":0},{"$f":"RouteOptimization!J37","v":0},{"$f":"RouteOptimization!K37","v":"00:00:00"},{"$f":"RouteOptimization!L37","v":0},{"$f":"RouteOptimization!M37","v":0}]
[null,{"$f":"RouteOptimization!E38","v":0},{"$f":"RouteOptimization!F38","v":0},{"$f":"RouteOptimization!G38","v":0},{"$f":"RouteOptimization!H38","v":0},{"$f":"RouteOptimization!I38","v":0},{"$f":"RouteOptimization!J38","v":0},{"$f":"RouteOptimization!K38","v":"00:00:00"},{"$f":"RouteOptimization!L38","v":0},{"$f":"RouteOptimization!M38","v":0}]

{"sheet":"HowToUse","index":2,"n_rows":42,"n_cols":156,"rows_kept":42,"cut":false,"hidden":false,"merged":[]}
["Functions of this softwawre"]
[null,"(1) Optimized Route Sorting"]
[null,null,"For multiple delivery destinations, it calculates the delivery sequence that will result in the shortest route."]
[null,"(2) Time measurement(Navigation search)"]
[null,null,"For the order determined above, an internet route search will output the travel time and total distance."]
["How to Use"]
[null,1,"Open the [RouteOptimization] sheet.",null,null,null,null,null,null,null,null,"ae","af","al","am","ar","at","au","az","ba","bd","be","bg","bh","bo","br","bt","by","ca","cd","cf","cg","ch","ci","cl","cm","co","cr","cu","cz","de","dk","do","dz","ec","ee","eg","eh","er","es","et","fi","fj","fr","gb","gh","gr","gt","gu","hk","hr","ht","hu","id","ie","il","in","iq","ir","is","it","jm","jo","jp","ke","kh","kr","kw","kz","li","lk","lu","lv","ly","ma","mc","md","me","mg","ml","mm","mn","mo","mt","mv","mx","my","mz","na","nc","ne","ng","ni","nl","no","np","nz","om","pa","pe","pg","ph","pk","pl","pr","ps","pt","py","qa","ro","rs","rw","sa","sc","sd","se","sg","si","sk","sn","ss","sv","sy","td","tg","th","tj","tn","to","tr","tt","tv","ua","ug","us","uy","uz","va","ve","vn","ws","ye","yt","za","zm","zw"]
[null,2,"Enter the delivery direction in [3C] cell. If there is no specification, please select \"auto\""]
[null,2,"Enter the delivery start time in [4C] cell."]
[null,3,"Enter the address of the starting and ending points in [5C] cell. This can be the address of a distribution center, garage, etc."]
[null,4,"Enter the downtime at one delivery location in [6C] cell."]
[null,5,"In columns A, B, and C, enter the shipping destination control number, name, and address."]
[null,6,"Click [Optimized Route Sorting]"]
[null,null,"　　　The delivery order that will result in the shortest route will be determined and output to the right of column E."]
[null,7,"Click [Time measurement(Navigation search)]"]
[null,null,"       It uses navigation to find the travel time and distance."]
[null,8,"You can print using the [Printing sheet]."]
[]
["Inquiry"]
[]
[null,null,"If it doesn't work properly, please feel free to contact us. We develop based on the needs of our users."]
[null,null,"https://tyk-systems.com/KyoriDistanceCO2Ask/postmailExcelKyoriEn.html"]
[null,null,"You can also send a request for a quote here."]
[]
[null,null,"Instructions"]
[null,null,"https://tyk-systems.com/RouteOptim/RouteOptimEn.html"]
[]
[]
[]
[]
["Information on the product version (shareware)"]
["1. The maximum number of inquiries per day will increase."]
["2. It can also be used for business purposes."]
["3. It will work if you enter the username and password issued for the retail version."]
["4. Customization such as changing the lines displayed and importing data is also possible. Please contact us."]
["***Please contact us in the question section regarding purchase terms***"]
[]
["Precautions when using the free software version"]
["1. The speed of your Internet connection determines the response."]
["2. The free software version has a maximum number of inquiries set to approximately 50."]
["3. Unauthorized copying, redistribution, reuse, and commercial (business) use are prohibited."]
["4. The software may freeze if the address is not written clearly."]

{"sheet":"Password","index":3,"n_rows":9,"n_cols":63,"rows_kept":9,"cut":false,"hidden":false,"merged":[]}
[]
[]
[null,"Product license (Entering this will remove the limit on the maximum number of inquiries. Please copy and use the ID issued.)",null,null,null,null,null,null,null,null,null,null,null,null,null,null,null,null,null,null,null,null,null,null,null,null,null,null,null,null,null,null,null,null,null,null,null,null,null,null,null,null,null,null,null,null,null,null,null,null,null,null,null,null,null,null,null,null,null,null,null,null,82084]
[null,"User ID  （example： TokyoCorporation-Entry-20260308）"]
[]
[]
[]
[]
[null,"Copyright(C)　2021-2025 Toda Systemware All rights reserved. "]

{"sheet":"CSV","index":4,"n_rows":3,"n_cols":3,"rows_kept":3,"cut":false,"hidden":false,"merged":[]}
[null,"Sheet for loading external files"]
[null,null,"You can import text data such as CSV files, TXT files, and DAT files."]
[null,null,"Please manually copy and paste the parcel number field of the imported file into [DataSheet]."]